[Event "2026 Biel Blitz Open"]
[Site "Biel, CH"]
[Date "2026.07.19"]
[Round "10"]
[White "Gireada, Daniel"]
[Black "Delion, Helge"]
[Result "1-0"]
[Board "27"]
[TimeControl "180+2"]
[WhiteFideId "1206451"]
[BlackFideId "12914568"]
[WhiteElo "2148"]
[BlackElo "1911"]
[WhiteClock "0:00:48"]
[BlackClock "0:00:03"]
[Variant "Standard"]
[EndDate "2026.07.19"]
[EndTime "15:02:45"]

1. d4 {[%clk 0:03:02]}  Nf6 {[%clk 0:03:03]} 2. c4 {[%clk 0:03:02]}  e6 {[%clk 0:03:04]} 3. Nf3 {[%clk 0:03:03]}  Bb4+ {[%clk 0:03:04]}
4. Bd2 {[%clk 0:03:01]}  Be7 {[%clk 0:03:05]} 5. Bg5 {[%clk 0:02:56]}  Ne4 {[%clk 0:02:57]} 6. Bxe7 {[%clk 0:02:50]}  Qxe7 {[%clk 0:02:58]}
7. Nbd2 {[%clk 0:02:44]}  f5 {[%clk 0:02:53]} 8. g3 {[%clk 0:02:40]}  O-O {[%clk 0:02:46]} 9. Bg2 {[%clk 0:02:40]}  d5 {[%clk 0:02:47]}
10. O-O {[%clk 0:02:22]}  Nd7 {[%clk 0:02:38]} 11. Rc1 {[%clk 0:02:16]}  c6 {[%clk 0:02:29]} 12. Qc2 {[%clk 0:02:12]}  Ndf6 {[%clk 0:01:56]}
13. Ne5 {[%clk 0:02:04]}  Bd7 {[%clk 0:01:48]} 14. f3 {[%clk 0:02:00]}  Nxd2 {[%clk 0:01:37]} 15. Qxd2 {[%clk 0:02:01]}  Rad8 {[%clk 0:01:33]}
16. c5 {[%clk 0:01:54]}  Bc8 {[%clk 0:01:29]} 17. b4 {[%clk 0:01:51]}  a6 {[%clk 0:01:28]} 18. a4 {[%clk 0:01:51]}  Nd7 {[%clk 0:01:23]}
19. f4 {[%clk 0:01:49]}  Nxe5 {[%clk 0:01:22]} 20. fxe5 {[%clk 0:01:49]}  g5 {[%clk 0:01:11]} 21. e3 {[%clk 0:01:35]}  Bd7 {[%clk 0:01:10]}
22. Rb1 {[%clk 0:01:33]}  Ra8 {[%clk 0:01:05]} 23. Rfc1 {[%clk 0:01:29]}  Qg7 {[%clk 0:00:58]} 24. Kh1 {[%clk 0:01:23]}  Be8 {[%clk 0:00:52]}
25. Bf3 {[%clk 0:01:21]}  Bg6 {[%clk 0:00:46]} 26. Rb2 {[%clk 0:01:16]}  Qh6 {[%clk 0:00:35]} 27. Qg2 {[%clk 0:01:12]}  Kh8 {[%clk 0:00:30]}
28. Re1 {[%clk 0:01:10]}  f4 {[%clk 0:00:24]} 29. exf4 {[%clk 0:01:08]}  gxf4 {[%clk 0:00:25]} 30. g4 {[%clk 0:01:09]}  Qh4 {[%clk 0:00:19]}
31. Qf2 {[%clk 0:01:07]}  Qxf2 {[%clk 0:00:18]} 32. Rxf2 {[%clk 0:01:08]}  Kg7 {[%clk 0:00:15]} 33. h4 {[%clk 0:01:05]}  h6 {[%clk 0:00:15]}
34. Kg2 {[%clk 0:01:06]}  Rab8 {[%clk 0:00:14]} 35. Rb2 {[%clk 0:01:06]}  b6 {[%clk 0:00:14]} 36. Be2 {[%clk 0:00:49]}  bxc5 {[%clk 0:00:14]}
37. dxc5 {[%clk 0:00:50]}  Be4+ {[%clk 0:00:10]} 38. Kf2 {[%clk 0:00:49]}  f3 {[%clk 0:00:04]} 39. Bxa6 {[%clk 0:00:49]}  Rf4 {[%clk 0:00:03]}
40. Rg1 {[%clk 0:00:48]} 1-0

[Event "2026 Biel Blitz Open"]
[Site "Biel, CH"]
[Date "2026.07.19"]
[Round "10"]
[White "Stefan, Iulia-Cristiana"]
[Black "Lupei, Denis"]
[Result "1-0"]
[Board "28"]
[TimeControl "180+2"]
[WhiteFideId "1273876"]
[BlackFideId "34611231"]
[WhiteElo "2050"]
[BlackElo "1890"]
[WhiteTitle "WFM"]
[WhiteClock "0:00:10"]
[BlackClock "0:00:06"]
[Variant "Standard"]
[EndDate "2026.07.19"]
[EndTime "15:06:45"]

1. d4 {[%clk 0:03:03]}  d5 {[%clk 0:03:03]} 2. Nf3 {[%clk 0:03:04]}  Nf6 {[%clk 0:03:04]} 3. c4 {[%clk 0:03:05]}  c6 {[%clk 0:03:05]}
4. Qb3 {[%clk 0:03:06]}  dxc4 {[%clk 0:02:57]} 5. Qxc4 {[%clk 0:03:06]}  Nbd7 {[%clk 0:02:58]} 6. Bg5 {[%clk 0:02:37]}  Nb6 {[%clk 0:02:55]}
7. Qc2 {[%clk 0:02:34]}  Bg4 {[%clk 0:02:53]} 8. Nbd2 {[%clk 0:02:33]}  e6 {[%clk 0:02:49]} 9. e3 {[%clk 0:02:23]}  Bb4 {[%clk 0:02:30]}
10. Ne5 {[%clk 0:02:07]}  Bf5 {[%clk 0:02:22]} 11. Bd3 {[%clk 0:02:07]}  Bxd3 {[%clk 0:02:05]} 12. Nxd3 {[%clk 0:02:00]}  Be7 {[%clk 0:01:43]}
13. O-O {[%clk 0:01:57]}  h6 {[%clk 0:01:37]} 14. Bh4 {[%clk 0:01:41]}  O-O {[%clk 0:01:19]} 15. Rfd1 {[%clk 0:01:33]}  Re8 {[%clk 0:01:13]}
16. Rac1 {[%clk 0:01:32]}  Nbd7 {[%clk 0:01:14]} 17. a3 {[%clk 0:01:23]}  Bd6 {[%clk 0:01:08]} 18. Ne4 {[%clk 0:01:19]}  Be7 {[%clk 0:00:57]}
19. Nec5 {[%clk 0:00:46]}  Qc7 {[%clk 0:00:50]} 20. Bg3 {[%clk 0:00:32]}  Bd6 {[%clk 0:00:49]} 21. Bxd6 {[%clk 0:00:32]}  Qxd6 {[%clk 0:00:49]}
22. Nxb7 {[%clk 0:00:33]}  Qc7 {[%clk 0:00:47]} 23. Qxc6 {[%clk 0:00:33]}  Qxc6 {[%clk 0:00:45]} 24. Rxc6 {[%clk 0:00:34]}  Rab8 {[%clk 0:00:44]}
25. Rc7 {[%clk 0:00:31]}  Nb6 {[%clk 0:00:40]} 26. Nbc5 {[%clk 0:00:25]}  a5 {[%clk 0:00:36]} 27. Ra7 {[%clk 0:00:24]}  Nc4 {[%clk 0:00:35]}
28. Rb1 {[%clk 0:00:22]}  Nxa3 {[%clk 0:00:35]} 29. Rc1 {[%clk 0:00:18]}  Nb5 {[%clk 0:00:33]} 30. Rxa5 {[%clk 0:00:19]}  Nd6 {[%clk 0:00:34]}
31. b4 {[%clk 0:00:18]}  Rb6 {[%clk 0:00:32]} 32. Rca1 {[%clk 0:00:16]}  Nd5 {[%clk 0:00:28]} 33. Ra6 {[%clk 0:00:17]}  Reb8 {[%clk 0:00:27]}
34. Rxb6 {[%clk 0:00:17]}  Rxb6 {[%clk 0:00:29]} 35. Ra6 {[%clk 0:00:15]}  Rxa6 {[%clk 0:00:12]} 36. Nxa6 {[%clk 0:00:16]}  Kf8 {[%clk 0:00:12]}
37. Kf1 {[%clk 0:00:13]}  Ke7 {[%clk 0:00:13]} 38. Ke2 {[%clk 0:00:14]}  Kd7 {[%clk 0:00:13]} 39. f3 {[%clk 0:00:15]}  f5 {[%clk 0:00:13]}
40. Ndc5+ {[%clk 0:00:14]}  Ke7 {[%clk 0:00:13]} 41. Kd3 {[%clk 0:00:13]}  f4 {[%clk 0:00:12]} 42. e4 {[%clk 0:00:13]}  Nb6 {[%clk 0:00:12]}
43. Nb3 {[%clk 0:00:08]}  g5 {[%clk 0:00:10]} 44. Nac5 {[%clk 0:00:08]}  h5 {[%clk 0:00:10]} 45. g3 {[%clk 0:00:09]}  fxg3 {[%clk 0:00:09]}
46. hxg3 {[%clk 0:00:09]}  h4 {[%clk 0:00:10]} 47. gxh4 {[%clk 0:00:08]}  gxh4 {[%clk 0:00:08]} 48. Ke3 {[%clk 0:00:08]}  Nbc4+ {[%clk 0:00:09]}
49. Kf4 {[%clk 0:00:07]}  Nf7 {[%clk 0:00:06]} 50. Kg4 {[%clk 0:00:07]}  e5 {[%clk 0:00:08]} 51. Kxh4 {[%clk 0:00:07]}  exd4 {[%clk 0:00:08]}
52. Nxd4 {[%clk 0:00:08]}  Nfe5 {[%clk 0:00:09]} 53. f4 {[%clk 0:00:07]}  Ng6+ {[%clk 0:00:09]} 54. Kg5 {[%clk 0:00:09]}  Nf8 {[%clk 0:00:10]}
55. f5 {[%clk 0:00:10]}  Nh7+ {[%clk 0:00:08]} 56. Kg6 {[%clk 0:00:11]}  Nf8+ {[%clk 0:00:03]} 57. Kg7 {[%clk 0:00:10]}  Nd6 {[%clk 0:00:04]}
58. f6+ {[%clk 0:00:08]}  Ke8 {[%clk 0:00:05]} 59. e5 {[%clk 0:00:06]}  Nf7 {[%clk 0:00:04]} 60. e6 {[%clk 0:00:07]}  Ne5 {[%clk 0:00:01]}
61. Nf5 {[%clk 0:00:07]}  Nxe6+ {[%clk 0:00:03]} 62. Nxe6 {[%clk 0:00:08]}  Kd7 {[%clk 0:00:04]} 63. Nc5+ {[%clk 0:00:09]}  Kc6 {[%clk 0:00:05]}
64. f7 {[%clk 0:00:10]}  Ng4 {[%clk 0:00:06]} 65. f8=Q {[%clk 0:00:10]}  Ne5 {[%clk 0:00:06]} 66. Qf6+ {[%clk 0:00:09]}  Kb5 {[%clk 0:00:06]}
67. Qxe5 {[%clk 0:00:10]} 1-0

[Event "2026 Biel Blitz Open"]
[Site "Biel, CH"]
[Date "2026.07.19"]
[Round "10"]
[White "Stefan, Romulus-Cristian"]
[Black "King, Alexander"]
[Result "1-0"]
[Board "29"]
[TimeControl "180+2"]
[WhiteFideId "1232835"]
[BlackFideId "1352334"]
[WhiteElo "2048"]
[BlackElo "1854"]
[WhiteTitle "CM"]
[WhiteClock "0:02:06"]
[BlackClock "0:00:08"]
[Variant "Standard"]
[EndDate "2026.07.19"]
[EndTime "14:55:35"]

1. d4 {[%clk 0:03:03]}  b6 {[%clk 0:03:03]} 2. e4 {[%clk 0:03:04]}  Bb7 {[%clk 0:03:04]} 3. Nc3 {[%clk 0:03:05]}  e6 {[%clk 0:03:05]}
4. Bd3 {[%clk 0:03:06]}  Bb4 {[%clk 0:03:06]} 5. Nge2 {[%clk 0:03:07]}  c5 {[%clk 0:02:43]} 6. d5 {[%clk 0:03:07]}  exd5 {[%clk 0:02:37]}
7. exd5 {[%clk 0:03:08]}  Bxd5 {[%clk 0:02:31]} 8. O-O {[%clk 0:03:08]}  Bxc3 {[%clk 0:02:12]} 9. Nxc3 {[%clk 0:03:08]}  Bb7 {[%clk 0:02:10]}
10. Re1+ {[%clk 0:02:58]}  Ne7 {[%clk 0:02:10]} 11. Qh5 {[%clk 0:02:53]}  d5 {[%clk 0:01:15]} 12. Bg5 {[%clk 0:02:44]}  Nbc6 {[%clk 0:01:09]}
13. Bb5 {[%clk 0:02:40]}  d4 {[%clk 0:00:43]} 14. Bxc6+ {[%clk 0:02:33]}  Bxc6 {[%clk 0:00:33]} 15. Rxe7+ {[%clk 0:02:32]}  Qxe7 {[%clk 0:00:33]}
16. Bxe7 {[%clk 0:02:33]}  Kxe7 {[%clk 0:00:33]} 17. Re1+ {[%clk 0:02:33]}  Kf8 {[%clk 0:00:30]} 18. Nd5 {[%clk 0:02:26]}  Rd8 {[%clk 0:00:16]}
19. Qe5 {[%clk 0:02:09]}  Re8 {[%clk 0:00:08]} 20. Qd6+ {[%clk 0:02:08]}  Kg8 {[%clk 0:00:07]} 21. Ne7+ {[%clk 0:02:07]}  Kf8 {[%clk 0:00:07]}
22. Ng6+ {[%clk 0:02:07]}  Kg8 {[%clk 0:00:08]} 23. Rxe8+ {[%clk 0:02:08]}  Bxe8 {[%clk 0:00:08]} 24. Qf8# {[%clk 0:02:06]} 1-0

[Event "2026 Biel Blitz Open"]
[Site "Biel, CH"]
[Date "2026.07.19"]
[Round "10"]
[White "Freuler, Roman"]
[Black "Nguyen Thi Mai Hung"]
[Result "0-1"]
[Board "30"]
[TimeControl "180+2"]
[WhiteFideId "1304283"]
[BlackFideId "12401676"]
[WhiteElo "1852"]
[BlackElo "2039"]
[BlackTitle "WGM"]
[WhiteClock "0:03:02"]
[BlackClock "0:00:33"]
[Variant "Standard"]
[EndDate "2026.07.19"]
[EndTime "15:04:01"]

1. e4 {[%clk 0:03:03]}  e6 {[%clk 0:03:04]} 2. d4 {[%clk 0:03:04]}  d5 {[%clk 0:03:05]} 3. e5 {[%clk 0:03:06]}  c5 {[%clk 0:03:06]}
4. c3 {[%clk 0:03:07]}  Nc6 {[%clk 0:03:07]} 5. Nf3 {[%clk 0:03:08]}  Qb6 {[%clk 0:03:08]} 6. a3 {[%clk 0:03:10]}  c4 {[%clk 0:03:09]}
7. Nbd2 {[%clk 0:03:10]}  Na5 {[%clk 0:03:10]} 8. b4 {[%clk 0:02:58]}  cxb3 {[%clk 0:03:09]} 9. Rb1 {[%clk 0:03:00]}  Bd7 {[%clk 0:03:09]}
10. Nxb3 {[%clk 0:02:56]}  Ba4 {[%clk 0:03:01]} 11. Nxa5 {[%clk 0:02:56]}  Bxd1 {[%clk 0:02:58]} 12. Rxb6 {[%clk 0:02:57]}  axb6 {[%clk 0:02:59]}
13. Bb5+ {[%clk 0:02:49]}  Kd8 {[%clk 0:02:48]} 14. Nxb7+ {[%clk 0:02:44]}  Kc7 {[%clk 0:02:49]} 15. Nd6 {[%clk 0:01:45]}  Bxf3 {[%clk 0:02:47]}
16. gxf3 {[%clk 0:01:46]}  Bxd6 {[%clk 0:02:45]} 17. exd6+ {[%clk 0:01:47]}  Kxd6 {[%clk 0:02:45]} 18. Bf4+ {[%clk 0:01:48]}  Ke7 {[%clk 0:02:46]}
19. a4 {[%clk 0:01:50]}  Nf6 {[%clk 0:02:42]} 20. Kd2 {[%clk 0:01:49]}  h6 {[%clk 0:02:34]} 21. Kd3 {[%clk 0:01:48]}  Nh5 {[%clk 0:02:21]}
22. Bc1 {[%clk 0:01:49]}  Rhc8 {[%clk 0:02:20]} 23. Ba3+ {[%clk 0:01:50]}  Kf6 {[%clk 0:02:21]} 24. Bd6 {[%clk 0:01:38]}  Kg6 {[%clk 0:02:09]}
25. Rg1+ {[%clk 0:01:35]}  Kh7 {[%clk 0:02:10]} 26. Be5 {[%clk 0:01:33]}  Ra7 {[%clk 0:02:07]} 27. h4 {[%clk 0:01:21]}  f6 {[%clk 0:01:53]}
28. Bd6 {[%clk 0:01:21]}  Rd8 {[%clk 0:01:48]} 29. Bh2 {[%clk 0:01:20]}  g6 {[%clk 0:01:35]} 30. Rb1 {[%clk 0:01:19]}  Rc8 {[%clk 0:01:28]}
31. Kd2 {[%clk 0:01:14]}  Ng7 {[%clk 0:01:29]} 32. Bd3 {[%clk 0:01:03]}  Rxa4 {[%clk 0:01:24]} 33. Rxb6 {[%clk 0:01:04]}  Ra2+ {[%clk 0:01:24]}
34. Bc2 {[%clk 0:01:02]}  Ra3 {[%clk 0:01:12]} 35. Bb3 {[%clk 0:01:00]}  h5 {[%clk 0:01:03]} 36. Kc2 {[%clk 0:00:57]}  Rca8 {[%clk 0:00:54]}
37. Kb2 {[%clk 0:00:57]}  R3a6 {[%clk 0:00:55]} 38. Rb7 {[%clk 0:00:53]}  R8a7 {[%clk 0:00:56]} 39. Rb8 {[%clk 0:00:53]}  Nf5 {[%clk 0:00:55]}
40. Bg3 {[%clk 0:00:47]}  Rc6 {[%clk 0:00:48]} 41. Bc2 {[%clk 0:00:43]}  Nd6 {[%clk 0:00:38]} 42. Bd3 {[%clk 0:00:42]}  Rb7+ {[%clk 0:00:37]}
43. Rxb7+ {[%clk 0:00:43]}  Nxb7 {[%clk 0:00:38]} 44. Bf4 {[%clk 0:00:37]}  Nd6 {[%clk 0:00:37]} 45. Bc1 {[%clk 0:00:32]}  Nf5 {[%clk 0:00:34]}
46. Bxf5 {[%clk 0:00:28]}  gxf5 {[%clk 0:00:30]} 47. Bf4 {[%clk 0:00:22]}  Kg6 {[%clk 0:00:31]} 48. Kb3 {[%clk 0:00:09]}  Kf7 {[%clk 0:00:32]}
49. Kb2 {[%clk 0:00:07]}  Ke7 {[%clk 0:00:32]} 50. Kb3 {[%clk 0:00:08]}  Kd7 {[%clk 0:00:33]} 51. Kb2 {[%clk 0:00:09]}  Rb6+ {[%clk 0:00:34]}
52. Kc2 {[%clk 0:00:10]}  Kc6 {[%clk 0:00:36]} 53. Bh6 {[%clk 0:00:08]}  Rb7 {[%clk 0:00:33]} 54. Bf8 {[%clk 0:00:06]}  Kb5 {[%clk 0:00:34]}
55. Kd3 {[%clk 0:00:03]}  Rf7 {[%clk 0:00:33]} 56. Ba3 {[%clk 0:03:02]} 0-1

[Event "2026 Biel Blitz Open"]
[Site "Biel, CH"]
[Date "2026.07.19"]
[Round "10"]
[White "Python, Noe"]
[Black "Aryan Goyal"]
[Result "1-0"]
[Board "32"]
[TimeControl "180+2"]
[WhiteFideId "1337637"]
[BlackFideId "366108825"]
[WhiteElo "2010"]
[BlackElo "1748"]
[WhiteClock "0:00:08"]
[BlackClock "0:00:02"]
[Variant "Standard"]
[EndDate "2026.07.19"]
[EndTime "15:06:42"]

1. e4 {[%clk 0:03:04]}  e5 {[%clk 0:03:04]} 2. Nf3 {[%clk 0:03:05]}  Nc6 {[%clk 0:03:05]} 3. Nc3 {[%clk 0:03:06]}  Nf6 {[%clk 0:03:02]}
4. a3 {[%clk 0:03:07]}  d5 {[%clk 0:02:58]} 5. Bb5 {[%clk 0:03:09]}  Nxe4 {[%clk 0:02:47]} 6. Qe2 {[%clk 0:03:10]}  Qd6 {[%clk 0:02:27]}
7. Nxe4 {[%clk 0:02:56]}  dxe4 {[%clk 0:02:27]} 8. Qxe4 {[%clk 0:02:57]}  Bd7 {[%clk 0:02:12]} 9. d4 {[%clk 0:02:57]}  O-O-O {[%clk 0:02:01]}
10. dxe5 {[%clk 0:01:17]}  Nxe5 {[%clk 0:01:19]} 11. Bxd7+ {[%clk 0:01:08]}  Rxd7 {[%clk 0:01:00]} 12. O-O {[%clk 0:01:02]}  Nxf3+ {[%clk 0:01:00]}
13. Qxf3 {[%clk 0:01:03]}  Qg6 {[%clk 0:00:49]} 14. Bf4 {[%clk 0:00:48]}  Bd6 {[%clk 0:00:48]} 15. Bxd6 {[%clk 0:00:46]}  Rxd6 {[%clk 0:00:48]}
16. c4 {[%clk 0:00:39]}  Rhd8 {[%clk 0:00:34]} 17. Rad1 {[%clk 0:00:37]}  Rxd1 {[%clk 0:00:19]} 18. Rxd1 {[%clk 0:00:38]}  Rxd1+ {[%clk 0:00:16]}
19. Qxd1 {[%clk 0:00:40]}  Qe4 {[%clk 0:00:16]} 20. Qc1 {[%clk 0:00:39]}  c6 {[%clk 0:00:11]} 21. h3 {[%clk 0:00:39]}  Kc7 {[%clk 0:00:10]}
22. Qc3 {[%clk 0:00:41]}  Qg6 {[%clk 0:00:05]} 23. b4 {[%clk 0:00:35]}  f6 {[%clk 0:00:03]} 24. c5 {[%clk 0:00:36]}  Qf5 {[%clk 0:00:04]}
25. Qg3+ {[%clk 0:00:36]}  Kc8 {[%clk 0:00:04]} 26. Qxg7 {[%clk 0:00:32]}  Kb8 {[%clk 0:00:03]} 27. Qf8+ {[%clk 0:00:32]}  Kc7 {[%clk 0:00:05]}
28. Qd6+ {[%clk 0:00:32]}  Kc8 {[%clk 0:00:06]} 29. a4 {[%clk 0:00:21]}  Qb1+ {[%clk 0:00:05]} 30. Kh2 {[%clk 0:00:22]}  Qxb4 {[%clk 0:00:06]}
31. Qe6+ {[%clk 0:00:22]}  Kc7 {[%clk 0:00:07]} 32. Qe7+ {[%clk 0:00:23]}  Kc8 {[%clk 0:00:08]} 33. Qe8+ {[%clk 0:00:24]}  Kc7 {[%clk 0:00:09]}
34. Qf7+ {[%clk 0:00:24]}  Kc8 {[%clk 0:00:10]} 35. Qxf6 {[%clk 0:00:21]}  Qxc5 {[%clk 0:00:11]} 36. Qh8+ {[%clk 0:00:22]}  Kc7 {[%clk 0:00:12]}
37. Qxh7+ {[%clk 0:00:23]}  Kb6 {[%clk 0:00:13]} 38. Qb1+ {[%clk 0:00:23]}  Kc7 {[%clk 0:00:14]} 39. Qb2 {[%clk 0:00:14]}  b5 {[%clk 0:00:12]}
40. axb5 {[%clk 0:00:13]}  cxb5 {[%clk 0:00:12]} 41. h4 {[%clk 0:00:13]}  a5 {[%clk 0:00:15]} 42. g4 {[%clk 0:00:13]}  Qd6+ {[%clk 0:00:15]}
43. Kh3 {[%clk 0:00:13]}  Qd3+ {[%clk 0:00:15]} 44. Kg2 {[%clk 0:00:12]}  Qe4+ {[%clk 0:00:16]} 45. f3 {[%clk 0:00:13]}  Qc4 {[%clk 0:00:16]}
46. h5 {[%clk 0:00:13]}  a4 {[%clk 0:00:16]} 47. h6 {[%clk 0:00:13]}  Qd3 {[%clk 0:00:10]} 48. h7 {[%clk 0:00:08]}  Qxh7 {[%clk 0:00:10]}
49. Qe5+ {[%clk 0:00:08]}  Kb6 {[%clk 0:00:11]} 50. Qf6+ {[%clk 0:00:09]}  Ka5 {[%clk 0:00:12]} 51. g5 {[%clk 0:00:10]}  a3 {[%clk 0:00:08]}
52. g6 {[%clk 0:00:11]}  Qg8 {[%clk 0:00:08]} 53. g7 {[%clk 0:00:06]}  a2 {[%clk 0:00:08]} 54. Qf8 {[%clk 0:00:07]}  Qxf8 {[%clk 0:00:05]}
55. gxf8=Q {[%clk 0:00:07]}  a1=Q {[%clk 0:00:02]} 56. Qa8+ {[%clk 0:00:08]} 1-0

[Event "2026 Biel Blitz Open"]
[Site "Biel, CH"]
[Date "2026.07.19"]
[Round "10"]
[White "Hajduk, Tomasz"]
[Black "Dietiker, Manuel"]
[Result "0-1"]
[Board "33"]
[TimeControl "180+2"]
[WhiteFideId "21811415"]
[BlackFideId "1317377"]
[WhiteElo "1791"]
[BlackElo "2002"]
[WhiteClock "0:00:09"]
[BlackClock "0:01:10"]
[Variant "Standard"]
[EndDate "2026.07.19"]
[EndTime "14:57:14"]

1. e4 {[%clk 0:03:02]}  c5 {[%clk 0:03:03]} 2. Nf3 {[%clk 0:03:03]}  e6 {[%clk 0:03:04]} 3. d4 {[%clk 0:03:04]}  cxd4 {[%clk 0:03:05]}
4. Nxd4 {[%clk 0:03:06]}  Nc6 {[%clk 0:03:06]} 5. Nc3 {[%clk 0:03:06]}  Qc7 {[%clk 0:03:08]} 6. Be3 {[%clk 0:03:06]}  Nf6 {[%clk 0:03:07]}
7. f3 {[%clk 0:03:06]}  a6 {[%clk 0:03:08]} 8. Qd2 {[%clk 0:03:07]}  b5 {[%clk 0:03:07]} 9. O-O-O {[%clk 0:03:03]}  b4 {[%clk 0:03:06]}
10. Nce2 {[%clk 0:03:02]}  Bb7 {[%clk 0:03:04]} 11. Nxc6 {[%clk 0:02:58]}  dxc6 {[%clk 0:03:03]} 12. g4 {[%clk 0:02:23]}  Be7 {[%clk 0:02:57]}
13. h4 {[%clk 0:02:11]}  Rd8 {[%clk 0:02:56]} 14. Qe1 {[%clk 0:02:10]}  Rxd1+ {[%clk 0:02:56]} 15. Qxd1 {[%clk 0:02:10]}  O-O {[%clk 0:02:53]}
16. h5 {[%clk 0:01:58]}  Rd8 {[%clk 0:02:54]} 17. Qe1 {[%clk 0:01:58]}  c5 {[%clk 0:02:42]} 18. g5 {[%clk 0:01:58]}  Nd7 {[%clk 0:02:40]}
19. g6 {[%clk 0:01:53]}  fxg6 {[%clk 0:02:28]} 20. hxg6 {[%clk 0:01:22]}  h6 {[%clk 0:02:29]} 21. Bh3 {[%clk 0:01:23]}  Nf8 {[%clk 0:02:23]}
22. Nf4 {[%clk 0:01:12]}  Qe5 {[%clk 0:02:11]} 23. Nd3 {[%clk 0:00:56]}  Qc7 {[%clk 0:01:49]} 24. Qg1 {[%clk 0:00:57]}  c4 {[%clk 0:01:48]}
25. Nf4 {[%clk 0:00:41]}  Qe5 {[%clk 0:01:46]} 26. Nh5 {[%clk 0:00:36]}  b3 {[%clk 0:01:32]} 27. axb3 {[%clk 0:00:34]}  cxb3 {[%clk 0:01:33]}
28. Nxg7 {[%clk 0:00:12]}  Qa5 {[%clk 0:01:17]} 29. cxb3 {[%clk 0:00:06]}  Qa1+ {[%clk 0:01:18]} 30. Kc2 {[%clk 0:00:07]}  Rc8+ {[%clk 0:01:18]}
31. Kd2 {[%clk 0:00:08]}  Qxb2+ {[%clk 0:01:19]} 32. Kd3 {[%clk 0:00:08]}  Qc2+ {[%clk 0:01:13]} 33. Kd4 {[%clk 0:00:09]}  Qc3# {[%clk 0:01:10]} 0-1

[Event "2026 Biel Blitz Open"]
[Site "Biel, CH"]
[Date "2026.07.19"]
[Round "10"]
[White "Floure, Alexan"]
[Black "Huang,Hsuan-Chen"]
[Result "0-1"]
[Board "34"]
[TimeControl "180+2"]
[WhiteFideId "1346610"]
[BlackFideId "16303121"]
[WhiteElo "1960"]
[BlackElo "1833"]
[WhiteClock "0:00:03"]
[BlackClock "0:01:18"]
[Variant "Standard"]
[EndDate "2026.07.19"]
[EndTime "15:02:53"]

1. e4 {[%clk 0:03:04]}  c6 {[%clk 0:03:03]} 2. d4 {[%clk 0:03:00]}  d5 {[%clk 0:03:05]} 3. f3 {[%clk 0:03:01]}  e6 {[%clk 0:03:05]}
4. Bd3 {[%clk 0:03:00]}  Nf6 {[%clk 0:03:05]} 5. Ne2 {[%clk 0:03:00]}  c5 {[%clk 0:03:03]} 6. c3 {[%clk 0:02:57]}  Nc6 {[%clk 0:02:57]}
7. O-O {[%clk 0:02:54]}  Be7 {[%clk 0:02:54]} 8. Na3 {[%clk 0:02:40]}  dxe4 {[%clk 0:02:51]} 9. fxe4 {[%clk 0:02:40]}  cxd4 {[%clk 0:02:51]}
10. cxd4 {[%clk 0:02:00]}  Nxd4 {[%clk 0:02:51]} 11. Nxd4 {[%clk 0:01:54]}  Qxd4+ {[%clk 0:02:52]} 12. Kh1 {[%clk 0:01:55]}  O-O {[%clk 0:02:44]}
13. e5 {[%clk 0:01:52]}  Qxe5 {[%clk 0:02:43]} 14. Bf4 {[%clk 0:01:53]}  Qa5 {[%clk 0:02:34]} 15. Nc4 {[%clk 0:01:52]}  Qh5 {[%clk 0:02:21]}
16. Be2 {[%clk 0:01:51]}  Qd5 {[%clk 0:02:15]} 17. Qc2 {[%clk 0:01:31]}  Qc5 {[%clk 0:01:58]} 18. Rf3 {[%clk 0:01:17]}  b5 {[%clk 0:01:58]}
19. Na3 {[%clk 0:01:06]}  Qxc2 {[%clk 0:01:56]} 20. Nxc2 {[%clk 0:01:07]}  Bb7 {[%clk 0:01:55]} 21. Rc3 {[%clk 0:01:03]}  Nd5 {[%clk 0:01:50]}
22. Rf3 {[%clk 0:00:50]}  Nxf4 {[%clk 0:01:49]} 23. Rxf4 {[%clk 0:00:51]}  a6 {[%clk 0:01:50]} 24. Raf1 {[%clk 0:00:31]}  Rac8 {[%clk 0:01:42]}
25. Ne1 {[%clk 0:00:27]}  Rc1 {[%clk 0:01:50]} 26. Rd4 {[%clk 0:00:22]}  Bd5 {[%clk 0:01:40]} 27. a3 {[%clk 0:00:20]}  Rfc8 {[%clk 0:01:38]}
28. h3 {[%clk 0:00:13]}  Bc5 {[%clk 0:01:36]} 29. Rdf4 {[%clk 0:00:14]}  Be3 {[%clk 0:01:33]} 30. Rg4 {[%clk 0:00:07]}  Bd2 {[%clk 0:01:29]}
31. Nd3 {[%clk 0:00:05]}  Rxf1+ {[%clk 0:01:27]} 32. Bxf1 {[%clk 0:00:07]}  Bc4 {[%clk 0:01:18]} 33. Kh2 {[%clk 0:00:03]}  Rd8 {[%clk 0:01:18]}
34. Rxc4 {[%clk 0:00:00]}  bxc4 {[%clk 0:01:18]} 35. Ne5 {[%clk 0:00:00]}  c3 {[%clk 0:01:18]} 36. bxc3 {[%clk 0:00:00]}  Bxc3 {[%clk 0:01:18]}
37. Nc6 {[%clk 0:00:00]} 0-1

[Event "2026 Biel Blitz Open"]
[Site "Biel, CH"]
[Date "2026.07.19"]
[Round "10"]
[White "Jehnichen, Kai"]
[Black "Gireada, Lucas"]
[Result "1/2-1/2"]
[Board "35"]
[TimeControl "180+2"]
[WhiteFideId "24684333"]
[BlackFideId "1373544"]
[WhiteElo "1952"]
[BlackElo "1651"]
[WhiteClock "0:02:29"]
[BlackClock "0:01:07"]
[Variant "Standard"]
[EndDate "2026.07.19"]
[EndTime "14:55:15"]

1. Nf3 {[%clk 0:03:02]}  Nf6 {[%clk 0:03:04]} 2. g3 {[%clk 0:03:01]}  g6 {[%clk 0:03:05]} 3. b3 {[%clk 0:03:02]}  b6 {[%clk 0:03:05]}
4. Bg2 {[%clk 0:03:01]}  Bb7 {[%clk 0:03:06]} 5. Bb2 {[%clk 0:03:02]}  Bg7 {[%clk 0:03:07]} 6. O-O {[%clk 0:03:02]}  O-O {[%clk 0:03:07]}
7. c4 {[%clk 0:03:03]}  c5 {[%clk 0:03:08]} 8. Nc3 {[%clk 0:03:00]}  d5 {[%clk 0:03:05]} 9. cxd5 {[%clk 0:02:59]}  Nxd5 {[%clk 0:03:05]}
10. Qc1 {[%clk 0:03:00]}  Nxc3 {[%clk 0:02:44]} 11. Bxc3 {[%clk 0:03:00]}  Bxc3 {[%clk 0:02:42]} 12. Qxc3 {[%clk 0:02:58]}  Nc6 {[%clk 0:02:41]}
13. h4 {[%clk 0:02:55]}  h5 {[%clk 0:02:35]} 14. Ng5 {[%clk 0:02:52]}  Rb8 {[%clk 0:02:21]} 15. Rad1 {[%clk 0:02:51]}  Qd4 {[%clk 0:02:22]}
16. Bxc6 {[%clk 0:02:41]}  Qxc3 {[%clk 0:02:19]} 17. dxc3 {[%clk 0:02:42]}  Bxc6 {[%clk 0:02:20]} 18. c4 {[%clk 0:02:36]}  Rbd8 {[%clk 0:02:10]}
19. f3 {[%clk 0:02:36]}  Kg7 {[%clk 0:01:58]} 20. Kf2 {[%clk 0:02:36]}  e5 {[%clk 0:01:40]} 21. e3 {[%clk 0:02:32]}  Rfe8 {[%clk 0:01:35]}
22. Ke2 {[%clk 0:02:28]}  Kf6 {[%clk 0:01:14]} 23. Nh7+ {[%clk 0:02:29]}  Kg7 {[%clk 0:01:13]} 24. Ng5 {[%clk 0:02:30]}  Kf6 {[%clk 0:01:14]}
25. f4 {[%clk 0:02:29]}  e4 {[%clk 0:01:06]} 26. Nh7+ {[%clk 0:02:28]}  Kg7 {[%clk 0:01:05]} 27. Ng5 {[%clk 0:02:29]}  Kf6 {[%clk 0:01:07]} 1/2-1/2